fUSD/lending_fUSD_20250220
["ID","MTS","AMOUNT","RATE_DAILY","PERIOD"]
[353791250,1740049857665,-500.0,0.00011287,2]
[353791251,1740049857675,-500.0,0.00011287,2]
[353791252,1740049857684,-500.0,0.00011287,2]
[353791253,1740049857694,-280.49,0.00011287,2]
[353791254,1740049857704,-500.0,0.00011287,2]
[353791255,1740049857714,-500.0,0.00011287,2]
[353791256,1740049857731,-500.0,0.00011287,2]
[353791257,1740049857741,-500.0,0.00011287,2]
[353791258,1740049857751,-500.0,0.00011287,2]
[353791259,1740049857760,-433.48,0.00011287,2]
[353791260,1740049857770,-372.45395002,0.00011287,2]
[353791261,1740049857781,-500.0,0.00011287,2]
[353791262,1740049857791,-500.0,0.00011287,2]
[353791263,1740049857805,-500.0,0.00011287,2]
[353791264,1740049857819,-500.0,0.00011287,2]
[353791265,1740049857828,-500.0,0.00011287,2]
[353791266,1740049857838,-500.0,0.00011287,2]
[353791267,1740049857848,-500.0,0.00011287,2]
[353791268,1740049857857,-500.0,0.00011287,2]
[353791269,1740049857866,-500.0,0.00011287,2]
[353791270,1740049857876,-500.0,0.00011287,2]
[353791271,1740049857885,-500.0,0.00011287,2]
[353791272,1740049857894,-500.0,0.00011287,2]
[353791273,1740049857905,-500.0,0.00011287,2]
[353791274,1740049857917,-277.89,0.00011287,2]
[353791275,1740049857927,-724.32,0.00011287,2]
[353791276,1740049857939,-487.71767819,0.00011287,2]
[353791277,1740049857951,-375.971684,0.00011369,2]
[353791278,1740049857960,-500.0,0.00011369,2]
[353791279,1740049857970,-245.08614,0.00011369,2]
[353791280,1740049857979,-509.66037956,0.00011369,2]
[353791281,1740049857989,-500.0,0.00011369,2]
[353791282,1740049857998,-472.55830383,0.00011369,2]
[353791283,1740049858008,-500.0,0.00011369,2]
[353791284,1740049858017,-500.0,0.00011369,2]
[353791285,1740049858027,-496.23531567,0.00011369,2]
[353791286,1740049858036,-500.0,0.00011369,2]
[353791287,1740049858046,-534.84,0.00011369,2]
[353791288,1740049858055,-252.95,0.00011369,2]
[353791289,1740049858065,-366.31,0.00011369,2]
[353791290,1740049858073,-500.0,0.00011369,2]
[353791291,1740049858083,-606.16689119,0.00011369,2]
[353791292,1740049858092,-235.41135521,0.00011369,2]
[353791293,1740049858101,-500.0,0.00011369,2]
[353791294,1740049858110,-426.58260145,0.00011369,2]
[353791295,1740049858119,-500.0,0.00011369,2]
[353791296,1740049858128,-500.0,0.00011369,2]
[353791297,1740049858138,-647.73404802,0.00011369,2]
[353791298,1740049858147,-500.0,0.00011369,2]
[353791299,1740049858158,-500.0,0.00011369,2]
[353791300,1740049858168,-500.0,0.00011369,2]
[353791301,1740049858177,-500.0,0.00011369,2]
[353791302,1740049858186,-500.0,0.00011369,2]
[353791303,1740049858197,-500.0,0.00011369,2]
[353791304,1740049858206,-500.0,0.00011369,2]
[353791305,1740049858216,-500.0,0.00011369,2]
[353791306,1740049858226,-500.0,0.00011369,2]
[353791307,1740049858235,-500.0,0.00011369,2]
[353791308,1740049858245,-500.0,0.00011369,2]
[353791309,1740049858254,-500.0,0.00011369,2]
[353791310,1740049858264,-564.1,0.00011369,2]
[353791311,1740049858274,-500.0,0.00011369,2]
[353791312,1740049858283,-500.0,0.00011369,2]
[353791313,1740049858293,-500.0,0.00011369,2]
[353791314,1740049858302,-500.0,0.00011369,2]
[353791315,1740049858312,-500.0,0.00011369,2]
[353791316,1740049858321,-500.0,0.00011369,2]
[353791317,1740049858331,-500.0,0.00011369,2]
[353791318,1740049858340,-500.0,0.00011369,2]
[353791319,1740049858349,-500.0,0.00011369,2]
[353791320,1740049858359,-500.0,0.00011369,2]
[353791321,1740049858369,-492.39412207,0.00011369,2]
[353791322,1740049858378,-500.0,0.00011369,2]
[353791323,1740049858388,-607.17036521,0.00011369,2]
[353791324,1740049858397,-500.0,0.00011369,2]
[353791325,1740049858407,-500.0,0.00011369,2]
[353791326,1740049858417,-450.98047577,0.00011369,2]
[353791327,1740049858427,-500.0,0.00011369,2]
[353791328,1740049858437,-500.0,0.00011369,2]
[353791329,1740049858447,-500.0,0.00011369,2]
[353791330,1740049858457,-500.0,0.00011369,2]
[353791331,1740049858467,-500.0,0.00011369,2]
[353791332,1740049858476,-261.97,0.00011369,2]
[353791333,1740049858485,-500.0,0.00011369,2]
[353791334,1740049858494,-500.0,0.00011369,2]
[353791335,1740049858505,-500.0,0.00011369,2]
[353791336,1740049858514,-500.0,0.00011369,2]
[353791337,1740049858524,-500.0,0.00011369,2]
[353791338,1740049858536,-500.0,0.00011369,2]
[353791339,1740049858546,-647.70015754,0.00011369,2]
[353791340,1740049858555,-500.0,0.00011369,2]
[353791341,1740049858564,-500.0,0.00011369,2]
[353791342,1740049858574,-500.0,0.00011369,2]
[353791343,1740049858584,-500.0,0.00011369,2]
[353791344,1740049858593,-500.0,0.00011369,2]
[353791345,1740049858603,-500.0,0.00011369,2]
[353791346,1740049858612,-500.0,0.00011369,2]
[353791347,1740049858621,-500.0,0.00011369,2]
[353791348,1740049858632,-272.65,0.00011369,2]
[353791349,1740049858642,-500.0,0.00011369,2]
[353791350,1740049858653,-500.0,0.00011369,2]
[353791351,1740049858663,-500.0,0.00011369,2]
[353791352,1740049858672,-500.0,0.00011369,2]
[353791353,1740049858681,-606.09363228,0.00011369,2]
[353791354,1740049858691,-187.04,0.00011369,2]
[353791355,1740049858701,-500.0,0.00011369,2]
[353791356,1740049858709,-500.0,0.00011369,2]
[353791357,1740049858721,-724.32,0.00011369,2]
[353791358,1740049858732,-502.01293985,0.00011376,2]
[353791359,1740049858742,-162.54,0.00011389,2]
[353791360,1740049858752,-7016.38174656,0.00011394,2]
[353791361,1740049858761,-500.0,0.00011452,2]
[353791362,1740049858770,-500.0,0.00011452,2]
[353791363,1740049858780,-500.0,0.00011452,2]
[353791364,1740049858789,-468.46654004,0.00011452,2]
[353791365,1740049858799,-201.51976229,0.00011452,2]
[353791366,1740049858809,-332.6436306,0.00011452,2]
[353791367,1740049858819,-447.55128518,0.00011452,2]
[353791368,1740049858829,-500.0,0.00011452,2]
[353791369,1740049858838,-599.08,0.00011452,2]
[353791370,1740049858848,-184.06576239,0.00011452,2]
[353791371,1740049858858,-163.90779134,0.00011452,2]
[353791372,1740049858867,-299.39446951,0.00011452,2]
[353791373,1740049858876,-500.0,0.00011452,2]
[353791374,1740049858886,-550.68334088,0.00011452,2]
[353791375,1740049858896,-314.43085316,0.00011452,2]
[353791376,1740049858906,-223.3163507,0.00011452,2]
[353791377,1740049858916,-500.0,0.00011452,2]
[353791378,1740049858926,-605.12,0.00011452,2]
[353791379,1740049858935,-500.0,0.00011452,2]
[353791380,1740049858944,-500.0,0.00011452,2]
[353791381,1740049858953,-500.0,0.00011452,2]
[353791382,1740049858962,-564.1,0.00011452,2]
[353791383,1740049858973,-454.91,0.00011452,2]
[353791384,1740049858982,-500.0,0.00011452,2]
[353791385,1740049858991,-573.31647815,0.00011452,2]
[353791386,1740049859001,-504.86874886,0.00011452,2]
[353791387,1740049859010,-500.0,0.00011452,2]
[353791388,1740049859019,-500.0,0.00011452,2]
[353791389,1740049859029,-500.0,0.00011452,2]
[353791390,1740049859039,-500.0,0.00011452,2]
[353791391,1740049859048,-384.85624992,0.00011452,2]
[353791392,1740049859058,-629.48,0.00011452,2]
[353791393,1740049859067,-500.0,0.00011452,2]
[353791394,1740049859077,-645.66139805,0.00011452,2]
[353791395,1740049859086,-500.0,0.00011452,2]
[353791396,1740049859096,-408.9368622,0.00011452,2]
[353791397,1740049859106,-500.0,0.00011452,2]
[353791398,1740049859116,-403.62104155,0.00011452,2]
[353791399,1740049859126,-500.0,0.00011452,2]
[353791400,1740049859135,-500.0,0.00011452,2]
[353791401,1740049859145,-500.0,0.00011452,2]
[353791402,1740049859155,-500.0,0.00011452,2]
[353791403,1740049859165,-500.0,0.00011452,2]
[353791404,1740049859175,-500.0,0.00011452,2]
[353791405,1740049859186,-500.0,0.00011452,2]
[353791406,1740049859196,-500.0,0.00011452,2]
[353791407,1740049859205,-500.0,0.00011452,2]
[353791408,1740049859214,-500.0,0.00011452,2]
[353791409,1740049859224,-500.0,0.00011452,2]
[353791410,1740049859266,-500.0,0.00011452,2]
[353791411,1740049859276,-312.18,0.00011452,2]
[353791412,1740049859299,-500.0,0.00011452,2]
[353791413,1740049859309,-163.18,0.00011452,2]
[353791414,1740049859318,-500.0,0.00011452,2]
[353791415,1740049859328,-500.0,0.00011452,2]
[353791416,1740049859338,-500.0,0.00011452,2]
[353791417,1740049859347,-500.0,0.00011452,2]
[353791418,1740049859356,-500.0,0.00011452,2]
[353791419,1740049859366,-500.0,0.00011452,2]
[353791420,1740049859375,-500.0,0.00011452,2]
[353791421,1740049859384,-724.32,0.00011452,2]
[353791422,1740049859393,-1757.39507,0.0001148,2]
[353791423,1740049859403,-151.16697054,0.000115,2]
[353791424,1740049859413,-1000.0,0.000115,2]
[353791425,1740049859422,-313.70136595,0.00011534,2]
[353791426,1740049859431,-500.0,0.00011534,2]
[353791427,1740049859441,-500.0,0.00011534,2]
[353791428,1740049859450,-243.83578368,0.00011534,2]
[353791429,1740049859459,-177.13392877,0.00011534,2]
[353791430,1740049859468,-500.0,0.00011534,2]
[353791431,1740049859477,-500.0,0.00011534,2]
[353791432,1740049859487,-500.0,0.00011534,2]
[353791433,1740049859496,-500.0,0.00011534,2]
[353791434,1740049859505,-564.1,0.00011534,2]
[353791435,1740049859514,-500.0,0.00011534,2]
[353791436,1740049859525,-500.0,0.00011534,2]
[353791437,1740049859534,-500.0,0.00011534,2]
[353791438,1740049859543,-500.0,0.00011534,2]
[353791439,1740049859553,-500.0,0.00011534,2]
[353791440,1740049859562,-500.0,0.00011534,2]
[353791441,1740049859572,-500.0,0.00011534,2]
[353791442,1740049859581,-500.0,0.00011534,2]
[353791443,1740049859590,-500.0,0.00011534,2]
[353791444,1740049859600,-502.42507692,0.00011534,2]
[353791445,1740049859609,-343.71,0.00011534,2]
[353791446,1740049859619,-500.0,0.00011534,2]
[353791447,1740049859629,-500.0,0.00011534,2]
[353791448,1740049859639,-500.0,0.00011534,2]
[353791449,1740049859649,-500.0,0.00011534,2]
[353791450,1740049859659,-500.0,0.00011534,2]
[353791451,1740049859669,-500.0,0.00011534,2]
[353791452,1740049859679,-500.0,0.00011534,2]
[353791453,1740049859688,-500.0,0.00011534,2]
[353791454,1740049859698,-500.0,0.00011534,2]
[353791455,1740049859708,-389.5406477,0.00011534,2]
[353791456,1740049859717,-500.0,0.00011534,2]
[353791457,1740049859730,-157.24,0.00011534,2]
[353791458,1740049859739,-338.9,0.00011534,2]
[353791459,1740049859748,-500.0,0.00011534,2]
[353791460,1740049859758,-500.0,0.00011534,2]
[353791461,1740049859770,-500.0,0.00011534,2]
[353791462,1740049859779,-500.0,0.00011534,2]
[353791463,1740049859789,-724.32,0.00011534,2]
[353791464,1740049859800,-1000.0,0.00011556,2]
[353791465,1740049859810,-500.0,0.00011616,2]
[353791466,1740049859819,-500.0,0.00011616,2]
[353791467,1740049859828,-484.86966524,0.00011616,2]
[353791468,1740049859838,-500.0,0.00011616,2]
[353791469,1740049859847,-500.0,0.00011616,2]
[353791470,1740049859857,-500.0,0.00011616,2]
[353791471,1740049859866,-564.1,0.00011616,2]
[353791472,1740049859875,-500.0,0.00011616,2]
[353791473,1740049859885,-433.36801888,0.00011616,2]
[353791474,1740049859895,-500.0,0.00011616,2]
[353791475,1740049859904,-500.0,0.00011616,2]
[353791476,1740049859913,-562.39411325,0.00011616,2]
[353791477,1740049859923,-329.18839596,0.00011616,2]
[353791478,1740049859943,-170.81160404,0.00011616,2]
[353791479,1740049859953,-500.0,0.00011616,2]
[353791480,1740049859963,-500.0,0.00011616,2]
[353791481,1740049859972,-500.0,0.00011616,2]
[353791482,1740049859982,-500.0,0.00011616,2]
[353791483,1740049859991,-500.0,0.00011616,2]
[353791484,1740049860000,-500.0,0.00011616,2]
[353791485,1740049860010,-500.0,0.00011616,2]
[353791486,1740049860021,-500.0,0.00011616,2]
[353791487,1740049860031,-500.0,0.00011616,2]
[353791488,1740049860041,-248.91005667,0.00011616,2]
[353791489,1740049860284,-282.96994333,0.00011616,2]
[353791490,1740049860294,-500.0,0.00011616,2]
[353791491,1740049860303,-500.0,0.00011616,2]
[353791492,1740049860312,-355.74302956,0.00011616,2]
[353791493,1740049860321,-500.0,0.00011616,2]
[353791494,1740049860330,-500.0,0.00011616,2]
[353791495,1740049860340,-500.0,0.00011616,2]
[353791496,1740049860349,-500.0,0.00011616,2]
[353791497,1740049860358,-724.32,0.00011616,2]
[353791498,1740049860368,-7016.38174656,0.00011662,2]
[353791499,1740049860377,-500.0,0.00011697,2]
[353791500,1740049860386,-257.12528353,0.00011698,2]
[353791501,1740049860395,-200.7376403,0.00011698,2]
[353791502,1740049860405,-500.0,0.00011698,2]
[353791503,1740049860414,-500.0,0.00011698,2]
[353791504,1740049860423,-414.03342467,0.00011698,2]
[353791505,1740049860432,-457.36496356,0.00011698,2]
[353791506,1740049860444,-106.73503644,0.00011698,2]
[353791507,1740049860454,-375.77679254,0.00011698,2]
[353791508,1740049860466,-124.22320746,0.00011698,2]
[353791509,1740049860475,-500.0,0.00011698,2]
[353791510,1740049860485,-435.73,0.00011698,2]
[353791511,1740049860494,-242.23084264,0.00011698,2]
[353791512,1740049860506,-257.76915736,0.00011698,2]
[353791513,1740049860516,-500.0,0.00011698,2]
[353791514,1740049860527,-500.0,0.00011698,2]
[353791515,1740049860536,-500.0,0.00011698,2]
[353791516,1740049860546,-500.0,0.00011698,2]
[353791517,1740049860556,-214.14,0.00011698,2]
[353791518,1740049860565,-500.0,0.00011698,2]
[353791519,1740049860574,-500.0,0.00011698,2]
[353791520,1740049860584,-500.0,0.00011698,2]
[353791521,1740049860593,-500.0,0.00011698,2]
[353791522,1740049860603,-500.0,0.00011698,2]
[353791523,1740049860612,-500.0,0.00011698,2]
[353791524,1740049860622,-500.0,0.00011698,2]
[353791525,1740049860631,-500.0,0.00011698,2]
[353791526,1740049860641,-500.0,0.00011698,2]
[353791527,1740049860651,-500.0,0.00011698,2]
[353791528,1740049860660,-724.32,0.00011698,2]
[353791529,1740049860670,-376.91971542,0.00011763,2]
[353791530,1740049860678,-500.0,0.0001178,2]
[353791531,1740049860687,-500.0,0.0001178,2]
[353791532,1740049860697,-525.0,0.0001178,2]
[353791533,1740049860707,-500.0,0.0001178,2]
[353791534,1740049860718,-272.17912182,0.0001178,2]
[353791535,1740049860731,-227.82087818,0.0001178,2]
[353791536,1740049860740,-500.0,0.0001178,2]
[353791537,1740049860750,-500.0,0.0001178,2]
[353791538,1740049860759,-73.54669142,0.0001178,2]
[353791539,1740049860785,-426.45330858,0.0001178,2]
[353791540,1740049860795,-500.0,0.0001178,2]
[353791541,1740049860805,-288.21072247,0.0001178,2]
[353791542,1740049860818,-211.78927753,0.0001178,2]
[353791543,1740049860827,-500.0,0.0001178,2]
[353791544,1740049860836,-500.0,0.0001178,2]
[353791545,1740049860846,-581.0,0.0001178,2]
[353791546,1740049860855,-500.0,0.0001178,2]
[353791547,1740049860865,-500.0,0.0001178,2]
[353791548,1740049860875,-433.37427969,0.0001178,2]
[353791549,1740049860886,-130.72572031,0.0001178,2]
[353791550,1740049860896,-500.0,0.0001178,2]
[353791551,1740049860906,-117.19770477,0.0001178,2]
[353791552,1740049860918,-382.80229523,0.0001178,2]
[353791553,1740049860927,-500.0,0.0001178,2]
[353791554,1740049860938,-500.0,0.0001178,2]
[353791555,1740049860948,-500.0,0.0001178,2]
[353791556,1740049860957,-500.0,0.0001178,2]
[353791557,1740049860968,-500.0,0.0001178,2]
[353791558,1740049860978,-234.26340452,0.0001178,2]
[353791559,1740049860988,-500.0,0.0001178,2]
[353791560,1740049860998,-500.0,0.0001178,2]
[353791561,1740049861007,-163.91,0.0001178,2]
[353791562,1740049861017,-351.12934883,0.0001178,2]
[353791563,1740049861026,-500.0,0.0001178,2]
[353791564,1740049861035,-500.0,0.0001178,2]
[353791565,1740049861044,-500.0,0.0001178,2]
[353791566,1740049861054,-500.0,0.0001178,2]
[353791567,1740049861064,-500.0,0.0001178,2]
[353791568,1740049861073,-724.32,0.0001178,2]
[353791569,1740049861083,-231.62,0.00011845,2]
[353791570,1740049861092,-500.0,0.00011863,2]
[353791571,1740049861102,-411.95495142,0.00011863,2]
[353791572,1740049861114,-88.04504858,0.00011863,2]
[353791573,1740049861124,-564.1,0.00011863,2]
[353791574,1740049861134,-500.0,0.00011863,2]
[353791575,1740049861144,-500.0,0.00011863,2]
[353791576,1740049861153,-500.0,0.00011863,2]
[353791577,1740049861164,-480.59525333,0.00011863,2]
[353791578,1740049861174,-88.73989809,0.00011863,2]
[353791579,1740049861186,-411.26010191,0.00011863,2]
[353791580,1740049861195,-88.73989809,0.00011863,2]
[353791581,1740049861254,-35284.58275746,0.00010958,2]
[353791582,1740049861264,-411.26010191,0.00011863,2]
[353791583,1740049861273,-500.0,0.00011863,2]
[353791584,1740049861283,-500.0,0.00011863,2]
[353791585,1740049861295,-500.0,0.00011863,2]
[353791586,1740049861304,-500.0,0.00011863,2]
[353791587,1740049861314,-500.0,0.00011863,2]
[353791588,1740049861324,-500.0,0.00011863,2]
[353791589,1740049861335,-500.0,0.00011863,2]
[353791590,1740049861346,-500.0,0.00011863,2]
[353791591,1740049861355,-724.32,0.00011863,2]
[353791592,1740049861365,-6082.69,0.00011881,2]
[353791593,1740049861374,-202.091,0.00011881,2]
[353791594,1740049861384,-232.18420191,0.000119,2]
[353791595,1740049861393,-7016.38174656,0.0001193,2]
[353791596,1740049861403,-151.0,0.0001193,2]
[353791597,1740049861414,-545.19419214,0.00011945,2]
[353791598,1740049861424,-564.1,0.00011945,2]
[353791599,1740049861433,-500.0,0.00011945,2]
[353791600,1740049861443,-500.0,0.00011945,2]
[353791601,1740049861454,-500.0,0.00011945,2]
[353791602,1740049861464,-500.0,0.00011945,2]
[353791603,1740049861474,-374.33282669,0.00011945,2]
[353791604,1740049861484,-500.0,0.00011945,2]
[353791605,1740049861495,-500.0,0.00011945,2]
[353791606,1740049861506,-500.0,0.00011945,2]
[353791607,1740049861516,-500.0,0.00011945,2]
[353791608,1740049861526,-500.0,0.00011945,2]
[353791609,1740049861536,-500.0,0.00011945,2]
[353791610,1740049861546,-500.0,0.00011945,2]
[353791611,1740049861557,-500.0,0.00011945,2]
[353791612,1740049861567,-724.32,0.00011945,2]
[353791613,1740049861577,-9155.06308813,0.00012,2]
[353791614,1740049861586,-651.99,0.00012025,2]
[353791615,1740049861596,-564.1,0.00012027,2]
[353791616,1740049861607,-500.0,0.00012027,2]
[353791617,1740049861617,-500.0,0.00012027,2]
[353791618,1740049861627,-500.0,0.00012027,2]
[353791619,1740049861637,-500.0,0.00012027,2]
[353791620,1740049861648,-500.0,0.00012027,2]
[353791621,1740049861658,-500.0,0.00012027,2]
[353791622,1740049861669,-500.0,0.00012027,2]
[353791623,1740049861678,-500.0,0.00012027,2]
[353791624,1740049861690,-587.82,0.00012027,2]
[353791625,1740049861700,-500.0,0.00012027,2]
[353791626,1740049861709,-500.0,0.00012027,2]
[353791627,1740049861723,-500.0,0.00012027,2]
[353791628,1740049861733,-724.32,0.00012027,2]
[353791629,1740049861742,-1270.48,0.00012054,2]
[353791630,1740049861752,-1757.39507,0.000121,2]
[353791631,1740049861762,-564.1,0.00012109,2]
[353791632,1740049861773,-500.0,0.00012109,2]
[353791633,1740049861783,-500.0,0.00012109,2]
[353791634,1740049861793,-568.43000001,0.00012109,2]
[353791635,1740049861806,-500.0,0.00012109,2]
[353791636,1740049861816,-500.0,0.00012109,2]
[353791637,1740049861826,-500.0,0.00012109,2]
[353791638,1740049861836,-500.0,0.00012109,2]
[353791639,1740049861846,-500.0,0.00012109,2]
[353791640,1740049861856,-500.0,0.00012109,2]
[353791641,1740049861866,-500.0,0.00012109,2]
[353791642,1740049861877,-500.0,0.00012109,2]
[353791643,1740049861887,-724.32,0.00012109,2]
[353791644,1740049861897,-564.1,0.00012191,2]
[353791645,1740049861908,-500.0,0.00012191,2]
[353791646,1740049861919,-500.0,0.00012191,2]
[353791647,1740049861930,-197.04465041,0.00012191,2]
[353791648,1740049861940,-332.53338257,0.00012191,2]
[353791649,1740049861951,-500.0,0.00012191,2]
[353791650,1740049861961,-188.33132928,0.00012191,2]
[353791651,1740049861971,-500.0,0.00012191,2]
[353791652,1740049861981,-500.0,0.00012191,2]
[353791653,1740049861991,-500.0,0.00012191,2]
[353791654,1740049862001,-500.0,0.00012191,2]
[353791655,1740049862012,-724.32,0.00012191,2]
[353791656,1740049862022,-7016.38174656,0.00012198,2]
[353791657,1740049862032,-232.18420165,0.0001221,2]
[353791658,1740049862042,-162.54,0.00012258,2]
[353791659,1740049862052,-564.1,0.00012273,2]
[353791660,1740049862062,-626.80410229,0.00012273,2]
[353791661,1740049862073,-500.0,0.00012273,2]
[353791662,1740049862083,-500.0,0.00012273,2]
[353791663,1740049862093,-500.0,0.00012273,2]
[353791664,1740049862103,-500.0,0.00012273,2]
[353791665,1740049862113,-500.0,0.00012273,2]
[353791666,1740049862121,-500.0,0.00012273,2]
[353791667,1740049862131,-724.32,0.00012273,2]
[353791668,1740049862140,-388.64231361,0.00012313,2]
[353791669,1740049862149,-4305.42508206,0.00012313,2]
[353791670,1740049862157,-388.64231361,0.00012316,2]
[353791671,1740049862164,-482.23520727,0.00012316,2]
[353791672,1740049862174,-554.14950934,0.0001232,2]
[353791673,1740049862183,-1361.43653756,0.0001232,2]
[353791674,1740049862193,-1446.70562179,0.00012323,2]
[353791675,1740049862203,-1165.92694082,0.00012323,2]
[353791676,1740049862214,-72762.50873284,0.00012325,2]
[353791677,1740049862228,-14044.19605598,0.00012325,2]
[353791678,1740049862240,-500.0,0.00012325,2]
[353791679,1740049862254,-1558.30887,0.00012325,2]
[353791680,1740049862266,-694.88518823,0.00012325,2]
[353791681,1740049862279,-320.49262175,0.00012325,2]
[353791682,1740049862291,-11061.10375098,0.00012325,2]
[353791683,1740049862303,-2866.43,0.00012325,2]
[353791684,1740049862314,-434.760005,0.00012325,2]
[353791685,1740049862331,-5004.8703576,0.00012325,2]
[353791686,1740049862342,-558.85127055,0.00012325,2]
[353791687,1740049862852,2000.0,0.000205,120]
[353791688,1740049878821,2000.0,0.000205,120]
[353791689,1740049895187,2000.0,0.000205,120]
[353791690,1740049912691,2000.0,0.000205,120]
[353791691,1740049925683,2000.0,0.000205,120]
[353791692,1740049944078,2000.0,0.000205,120]
[353791695,1740049957478,2000.0,0.000205,120]
[353791696,1740049971011,2000.0,0.000205,120]
[353791697,1740049984290,2000.0,0.000205,120]
[353791698,1740049991179,684.24,9.442e-05,2]
[353791699,1740050426899,-1256.94,0.00013918,30]
[353791700,1740050561911,289.43,8.767e-05,2]
[353791703,1740050833692,-150.0,9.999e-05,2]
[353791704,1740050833716,-500.30323679,9.999e-05,2]
[353791705,1740050833741,-500.0,9.999e-05,2]
[353791706,1740050833765,-500.0,9.999e-05,2]
[353791707,1740050833790,-500.0,9.999e-05,2]
[353791708,1740050833814,-500.0,9.999e-05,2]
[353791709,1740050833838,-385.54790245,9.999e-05,2]
[353791710,1740050833862,-46964.14886076,0.0001,2]
[353791712,1740050840131,-50000.0,0.0001,2]
[353791723,1740050930246,-300.0,9.999e-05,2]
[353791724,1740050930278,-29700.0,0.0001,2]
[353791725,1740050935550,-20000.0,0.0001,2]
[353791726,1740050940907,-30000.0,0.0001,2]
[353791732,1740051015802,-500.0,9.9e-05,2]
[353791733,1740051015827,-150.0,9.999e-05,2]
[353791734,1740051015853,-9350.0,0.0001,2]
[353791738,1740051032273,-416.79146914,0.0001,2]
[353791739,1740051032284,-2995.83,0.0001,2]
[353791740,1740051032295,-294.33656805,0.0001,2]
[353791741,1740051032307,-475.22000005,0.0001,2]
[353791742,1740051032317,-413.27807374,0.0001,2]
[353791743,1740051032333,-5450.527,0.0001,2]
[353791744,1740051032352,-1472.14757156,0.0001,2]
[353791745,1740051032363,-1208.7485247,0.0001,2]
[353791746,1740051032374,-752.76793986,0.0001,2]
[353791747,1740051032385,-193871.8216,0.0001,2]
[353791748,1740051032396,-6186.76748901,0.0001,2]
[353791749,1740051032408,-8440.28380497,0.0001,2]
[353791750,1740051032436,-280.710003,0.0001,2]
[353791751,1740051032543,-8925.070902,0.0001,2]
[353791752,1740051032597,-282.20816542,0.0001,2]
[353791753,1740051032652,-540.49795588,0.0001,2]
[353791757,1740051038178,-573.68025612,0.0001,2]
[353791758,1740051038238,-190030.85078793,0.0001,2]
[353791759,1740051038343,-845.926513,0.0001,2]
[353791760,1740051038355,-2178.9361709,0.0001,2]
[353791761,1740051038370,-2976.7763258,0.0001,2]
[353791762,1740051038393,-21209.03485618,0.0001,2]
[353791763,1740051038405,-3352.7522985,0.0001,2]
[353791764,1740051038416,-349.50898736,0.0001,2]
[353791765,1740051038428,-9117.32424806,0.0001,2]
[353791766,1740051038448,-548.35263034,0.0001,2]
[353791767,1740051038460,-14997.56489977,0.0001,2]
[353791773,1740051040587,-7039.61529569,0.0001,2]
[353791883,1740051162302,-459.9278,9.9e-05,2]
[353791884,1740051162327,-917.07,9.999e-05,2]
[353791885,1740051162351,-300.0,9.999e-05,2]
[353791886,1740051162378,-18323.0022,0.0001,2]
[353791887,1740051277422,-20000.0,0.0001,2]
[353791888,1740051287657,650.02,8.219e-05,2]
[353791889,1740051327074,-300.0,9.999e-05,2]